bitfinex-derivatives/quotes_SOLF0:USTF0_20260115
["timestamp","ask_amount","ask_price","bid_price","bid_amount"]
[1768498821510,6.30196744,144.06,143.97,2.77744706]
[1768498821815,3.09972822,144.05,143.96,18.9]
[1768498822505,0.04853154,144.02,143.96,18.9]
[1768498822910,0.04853154,144.02,143.97,6.2537]
[1768498828015,0.04853154,144.02,143.96,18.9]
[1768498828820,0.04853154,144.02,143.96,25.1541]
[1768498829010,0.04853154,144.02,143.96,18.9]
[1768498830617,5.92567402,144.02,143.91,97.3211]
[1768498830807,3.09969542,144.01,143.92,18.8]
[1768498831118,3.09969542,144.01,143.92,21.57744706]
[1768498831617,0.04977765,143.98,143.92,21.57744706]
[1768498832613,18.8,144.04,143.92,21.57744706]
[1768498832614,3.09969542,144.03,143.94,2.77744706]
[1768498832915,3.09969542,144.03,143.92,18.8]
[1768498833114,3.09969542,144.03,143.95,2.77744706]
[1768498833312,9.35119542,144.03,143.96,6.2542]
[1768498834117,9.35119542,144.03,143.95,2.77744706]
[1768498834419,6.2505,144.05,143.97,2.77744706]
[1768498835516,9.34939542,144.07,143.99,6.2527]
[1768498835720,3.09969542,144.06,143.99,6.2527]
[1768498836822,3.09969542,144.08,144.0,6.2524]
[1768498837518,6.2495,144.07,144.0,6.2524]
[1768498837921,0.04945222,144.05,144.0,6.2524]
[1768498842221,3.09969542,144.08,144.01,6.2519]
[1768498844717,3.09969542,144.08,144.02,6.2514]
[1768498844918,3.09969542,144.08,144.01,2.77744706]
[1768498845118,3.09969542,144.13,144.03,6.2508]
[1768498845329,3.09969542,144.11,144.03,6.2508]
[1768498845528,3.09969542,144.11,144.03,6.30230217]
[1768498846929,6.2483,144.1,144.03,6.30230217]
[1768498847429,9.34799542,144.1,144.03,6.30230217]
[1768498849318,3.09969542,144.09,144.03,6.30230217]
[1768498849832,6.2483,144.1,144.03,6.30230217]
[1768498851230,9.31311298,144.1,144.03,6.30230217]
[1768498852530,6.2486,144.09,144.03,6.30230217]
[1768498853324,3.06481298,144.08,144.03,0.05150217]
[1768498853826,3.06481298,144.08,144.0,18.66]
[1768498854031,6.2497,144.07,144.01,6.252]
[1768498854226,3.06481298,144.08,144.01,6.252]
[1768498855329,9.31381298,144.08,144.02,6.2515]
[1768498855737,3.06481298,144.08,144.02,6.2515]
[1768498860637,3.06481298,144.08,144.0,24.912]
[1768498861942,6.2498,144.06,144.0,24.912]
[1768498862641,3.06481298,144.05,144.02,0.04473055]
[1768498863437,97.1932,144.11,144.02,0.04473055]
[1768498863438,6.2493,144.08,144.02,0.04473055]
[1768498864041,6.2493,144.08,144.0,18.66]
[1768498864846,6.2493,144.08,144.02,6.2515]
[1768498865242,6.2493,144.08,144.0,18.66]
[1768498865545,3.06481298,144.09,144.04,0.04608012]
[1768498865742,3.06481298,144.09,144.0,18.44]
[1768498866050,0.04660652,144.05,144.0,18.44]
[1768498866741,0.04660652,144.05,144.0,6.2524]
[1768498866937,0.04660652,144.05,143.99,18.42]
[1768498867446,0.04660652,144.05,143.99,24.6729]
[1768498867649,0.04660652,144.05,143.99,18.42]
[1768498867945,0.04660652,144.05,144.01,6.2519]
[1768498870950,0.04660652,144.05,143.97,115.6597]
[1768498871452,3.06481298,144.08,144.02,6.2515]
[1768498872448,0.05103844,144.06,144.03,6.2511]
[1768498874346,3.06481298,144.12,144.04,6.2506]
[1768498874649,3.06481298,144.12,144.03,0.05090862]
[1768498875042,3.06481298,144.11,144.03,6.2507]
[1768498875745,3.06481298,144.11,144.06,0.05054487]
[1768498876248,3.06481298,144.13,144.06,0.05054487]
[1768498880843,3.06481298,144.13,144.06,6.30034487]
[1768498885359,3.10133784,144.12,144.06,6.30034487]
[1768498886653,3.10133784,144.12,144.06,0.05054487]
[1768498887555,3.10133784,144.11,144.06,0.05054487]
[1768498888054,3.10133784,144.1,143.98,114.11916154]
[1768498888255,3.14538385,144.1,143.99,18.2]
[1768498888652,3.10133784,144.08,144.02,6.2515]
[1768498889562,0.05015263,144.06,144.02,6.2515]
[1768498889766,0.05015263,144.06,143.99,115.4645]
[1768498890756,0.05015263,144.06,144.02,6.2513]
[1768498891960,3.15149047,144.06,143.99,18.2]
[1768498892256,3.15149047,144.06,143.96,115.4467]
[1768498892865,3.10133784,144.06,143.96,18.16]
[1768498893063,0.05232982,144.02,143.96,18.16]
[1768498893464,0.05232982,144.02,143.99,6.2526]
[1768498894157,0.05232982,144.02,143.99,6.3031989]
[1768498894364,3.10133784,144.05,143.99,6.3031989]
[1768498895765,3.10133784,144.05,143.99,0.0505989]
[1768498896564,3.10133784,144.05,143.99,6.3033989]
[1768498898366,3.10133784,144.05,143.99,0.0505989]
[1768498903471,9.35213784,144.04,143.99,0.0505989]
[1768498904871,3.10133784,144.04,143.99,0.0505989]
[1768498905970,97.2105,144.08,143.99,0.0505989]
[1768498905971,3.10133784,144.09,144.0,4.34066154]
[1768498906166,3.10133784,144.09,144.0,22.36066154]
[1768498906772,3.10133784,144.09,144.03,0.05006835]
[1768498909867,3.10133784,144.09,144.03,6.30096835]
[1768498911564,3.10133784,144.09,144.03,0.05006835]
[1768498911870,3.32315863,144.13,144.04,17.98]
[1768498912575,3.32315863,144.13,144.06,6.2497]
[1768498912886,3.32315863,144.13,144.07,0.05181624]
[1768498913374,3.32315863,144.1,144.02,17.96]
[1768498914776,0.05033401,144.07,144.03,6.2509]
[1768498915668,0.05033401,144.07,144.01,17.94]
[1768498916882,0.05033401,144.07,144.02,6.2515]
[1768498917774,3.37349264,144.07,143.99,2.77796421]
[1768498917973,3.37349264,144.07,144.0,17.9]
[1768498918275,3.37349264,144.07,144.02,6.2515]
[1768498923371,0.05033401,144.07,144.03,6.2511]
[1768498927280,2.77796421,144.12,144.0,17.9]
[1768498927281,3.32315863,144.12,144.05,6.2502]
[1768498927485,3.32315863,144.12,144.04,2.8283277]
[1768498927680,3.32315863,144.12,144.04,20.6483277]
[1768498927877,3.32315863,144.12,144.06,6.2497]
[1768498928680,3.32315863,144.12,144.08,0.0498813]
[1768498929386,3.32315863,144.12,144.04,20.59796421]
[1768498929583,3.37233555,144.11,144.04,20.59796421]
[1768498929887,3.37233555,144.11,144.04,17.82]
[1768498930379,0.04917692,144.11,144.05,2.77796421]
[1768498930780,0.04917692,144.11,144.06,6.2498]
[1768498933088,3.32315863,144.13,144.07,6.2493]
[1768498933488,3.32315863,144.15,144.07,0.04396829]
[1768498934185,3.32315863,144.15,144.08,6.2489]
[1768498934987,3.32315863,144.15,144.1,0.0459962]
[1768498936179,3.32315863,144.17,144.1,0.0459962]
[1768498936382,6.10112284,144.17,144.1,0.0459962]
[1768498936589,3.32315863,144.16,144.1,0.0459962]
[1768498937589,3.32315863,144.15,144.05,2.77796421]
[1768498937792,3.36908088,144.14,144.05,2.77796421]
[1768498937992,3.36908088,144.14,144.06,2.77796421]
[1768498938289,3.32315863,144.14,144.06,2.77796421]
[1768498938486,3.32315863,144.14,144.07,6.2492]
[1768498938793,0.04799035,144.11,144.07,6.2492]
[1768498939088,0.04799035,144.11,144.08,6.2487]
[1768498939392,3.32315863,144.14,144.09,0.04861635]
[1768498939590,3.32315863,144.14,144.09,6.29691635]
[1768498941694,3.32315863,144.14,144.09,0.04861635]
[1768498941993,3.28669696,144.18,144.09,0.04861635]
[1768498942397,3.28669696,144.18,144.09,6.29681635]
[1768498942597,258.42797537,144.19,144.09,6.2482]
[1768498942598,3.28669696,144.16,144.09,6.2482]
[1768498942788,3.28669696,144.16,144.05,97.2272]
[1768498942988,3.28669696,144.16,144.05,117.66516421]
[1768498943195,0.0499017,144.14,144.05,117.66516421]
[1768498943583,3.28669696,144.15,144.05,117.66516421]
[1768498943783,3.28669696,144.15,144.06,97.2194]
[1768498944193,3.28669696,144.15,144.07,2.77796421]
[1768498944398,0.05331504,144.12,144.07,2.77796421]
[1768498944592,0.05331504,144.12,144.05,117.66516421]
[1768498944785,0.05331504,144.12,144.07,2.77796421]
[1768498945797,0.05331504,144.12,144.09,6.2484]
[1768498946894,3.33739701,144.17,144.08,2.77796421]
[1768498947098,3.33739701,144.17,144.09,0.04873095]
[1768498947292,3.33739701,144.16,144.1,6.248]
[1768498948302,3.33739701,144.16,144.12,0.04445147]
[1768498948596,3.33739701,144.16,144.11,6.2477]
[1768498951399,3.33739701,144.16,144.12,6.2472]
[1768498952093,3.33739701,144.21,144.13,97.1719]
[1768498952296,3.33739701,144.24,144.14,2.77796421]
[1768498952696,6.11536122,144.27,144.16,2.77796421]
[1768498952999,9.57969701,144.24,144.17,17.56]
[1768498953198,3.33739701,144.23,144.15,17.56]
[1768498953700,3.33739701,144.22,144.15,17.56]
[1768498954394,3.33739701,144.22,144.14,17.54]
[1768498954794,3.33739701,144.2,144.11,9.02536421]
[1768498954998,3.33739701,144.2,144.12,17.54]
[1768498955400,3.33739701,144.22,144.12,17.54]
[1768498955596,3.33739701,144.22,144.14,2.77796421]
[1768498955797,3.33739701,144.22,144.12,17.54]
[1768498955992,3.33739701,144.22,144.14,2.77796421]
[1768498956189,3.33739701,144.22,144.16,0.04763837]
[1768498958797,20.83739701,144.24,144.16,0.04763837]
[1768498959703,3.33739701,144.26,144.17,2.77796421]
[1768498959898,3.33739701,144.25,144.17,2.77796421]
[1768498960700,3.33739701,144.25,144.2,0.04939336]
[1768498960993,9.57909701,144.25,144.2,0.04939336]
[1768498961198,3.33739701,144.24,144.2,0.04939336]
[1768498962296,3.33739701,144.26,144.2,0.04939336]
[1768498964005,3.33739701,144.25,144.17,6.2449]
[1768498964198,0.0439579,144.24,144.17,6.2449]
[1768498965799,0.0439579,144.24,144.18,9.02246421]
[1768498966100,0.0439579,144.24,144.18,6.2445]
[1768498968201,0.0439579,144.24,144.16,20.25796421]
[1768498968795,0.0439579,144.24,144.17,6.245]
[1768498970508,3.38135491,144.24,144.17,23.625]
[1768498971011,0.0439579,144.24,144.19,6.2442]
[1768498971601,0.0439579,144.24,144.2,6.2437]
[1768498972708,0.0439579,144.24,144.19,6.244]
[1768498973007,0.0439579,144.24,144.17,17.38]
[1768498973204,0.0439579,144.24,144.19,2.77796421]
[1768498973801,3.12344125,144.27,144.21,6.2431]
[1768498974005,3.12344125,144.27,144.21,23.5831]
[1768498974201,3.12344125,144.3,144.21,20.11796421]
[1768498974412,3.12344125,144.3,144.23,6.2423]
[1768498975309,12.13990546,144.33,144.25,0.0495174]
[1768498975508,3.12344125,144.32,144.25,0.0495174]
[1768498976011,3.12344125,144.32,144.25,6.2908174]
[1768498976207,9.36214125,144.32,144.25,0.0495174]
[1768498976710,3.12344125,144.31,144.25,0.0495174]
[1768498979011,3.12344125,144.31,144.25,6.2910174]
[1768498980608,3.12344125,144.31,144.25,0.0495174]
[1768498981901,3.12344125,144.3,144.25,0.0495174]
[1768498982915,3.12344125,144.3,144.18,16.81661922]
[1768498982916,3.12344125,144.28,144.14,109.6576]
[1768498983112,3.12344125,144.28,144.18,17.26]
[1768498983508,3.12344125,144.28,144.18,17.24]
[1768498983704,3.12344125,144.28,144.2,6.2437]
[1768498983911,3.12344125,144.35,144.21,97.119]
[1768498984214,3.12344125,144.32,144.19,97.1324]
[1768498984410,4.32791922,144.33,144.23,6.2424]
[1768498984411,3.12344125,144.29,144.23,6.2424]
[1768498986128,0.05157251,144.27,144.23,6.2424]
[1768498987209,3.12344125,144.32,144.24,6.2419]
[1768498987407,3.12344125,144.32,144.24,6.28605817]
[1768498988618,3.12344125,144.32,144.24,0.04415817]
[1768498988821,3.12344125,144.32,144.25,6.2414]
[1768498989120,3.12344125,144.32,144.24,0.04415817]
[1768498989320,3.12344125,144.32,144.23,17.2]
[1768498989712,3.12344125,144.32,144.27,0.05343424]
[1768498991621,3.12344125,144.32,144.23,17.2]
[1768498991821,3.16914408,144.31,144.23,17.2]
[1768498992917,3.16914408,144.31,144.26,6.2411]
[1768498993118,3.16914408,144.31,144.24,97.0974]
[1768498993423,3.16914408,144.31,144.27,6.2405]
[1768498994325,3.16914408,144.31,144.24,97.0974]
[1768498994825,3.16914408,144.31,144.27,6.2405]
[1768498995527,3.16914408,144.31,144.25,6.2414]
[1768498996128,3.12344125,144.29,144.23,6.2422]
[1768498996331,3.12344125,144.29,144.19,1.8213069]
[1768498996715,3.12344125,144.29,144.19,17.12]
[1768498996920,3.12344125,144.26,144.17,1.8213069]
[1768498997116,3.17236391,144.25,144.17,1.8213069]
[1768498998832,3.17236391,144.25,144.2,6.2437]
[1768498999728,3.17236391,144.25,144.18,6.2443]
[1768499001936,3.17236391,144.25,144.19,6.2441]
[1768499004131,3.17236391,144.25,144.16,18.87743365]
[1768499004132,0.04892266,144.25,144.2,1.81743365]
[1768499004530,3.19451414,144.27,144.2,1.81743365]
[1768499004929,0.04736932,144.24,144.2,1.81743365]
[1768499005825,0.04736932,144.24,144.17,98.96134974]
[1768499006028,0.04736932,144.24,144.18,1.81804974]
[1768499006838,0.04736932,144.24,144.2,6.2437]
[1768499007138,0.04736932,144.24,144.18,1.81804974]
[1768499007527,0.04736932,144.24,144.19,8.06214974]
[1768499007832,3.18654046,144.28,144.2,1.86755388]
[1768499008330,3.18654046,144.28,144.21,8.06134974]
[1768499008738,10.56711922,144.31,144.21,1.81804974]
[1768499008739,3.18654046,144.31,144.21,1.81804974]
[1768499009445,3.18654046,144.31,144.25,0.04976239]
[1768499015443,3.18654046,144.31,144.25,6.29136239]
[1768499016052,3.18654046,144.31,144.25,0.04976239]
[1768499016951,3.18654046,144.28,144.22,6.2426]
[1768499018952,3.18654046,144.28,144.2,6.2436]
[1768499019850,3.18654046,144.24,144.16,1.86781213]
[1768499020046,3.18654046,144.24,144.14,1.86781213]
[1768499020348,3.18654046,144.23,144.14,1.86781213]
[1768499020855,0.04935314,144.2,144.14,1.86781213]
[1768499021656,0.04935314,144.2,144.14,8.11391213]
[1768499021949,3.2358936,144.2,144.14,6.2461]
[1768499023958,3.2358936,144.2,144.12,8.11501213]
[1768499026251,3.18654046,144.19,144.12,1.86781213]
[1768499027160,0.04399645,144.17,144.12,1.86781213]
[1768499028161,3.23053691,144.17,144.1,18.72781213]
[1768499028855,3.23053691,144.17,144.1,1.86781213]
[1768499030966,3.23053691,144.17,144.08,18.69225481]
[1768499031561,3.18654046,144.17,144.09,1.87225481]
[1768499031857,0.05206412,144.14,144.09,1.87225481]
[1768499033661,0.05206412,144.14,144.07,1.87225481]
[1768499034053,3.22971312,144.14,144.07,1.87225481]
[1768499035366,3.177649,144.12,144.04,1.87225481]
[1768499035960,3.177649,144.14,144.05,1.87225481]
[1768499036758,3.177649,144.17,144.08,1.91674219]
[1768499037259,3.177649,144.17,144.08,1.87225481]
[1768499037466,3.177649,144.19,144.11,1.87225481]
[1768499037653,3.177649,144.19,144.11,1.92483397]
[1768499038457,9.421949,144.19,144.11,1.92483397]
[1768499039467,9.421949,144.19,144.11,4.69905929]
[1768499040562,9.421949,144.19,144.11,1.92483397]
[1768499040762,3.177649,144.18,144.11,1.92483397]
[1768499042969,3.177649,144.17,144.11,0.05257916]
[1768499044868,3.177649,144.16,144.11,0.05257916]
[1768499046163,9.422249,144.19,144.11,1.92483397]
[1768499046465,3.177649,144.19,144.12,1.87225481]
[1768499046664,3.177649,144.19,144.12,8.11945481]
[1768499047063,3.177649,144.19,144.14,0.04841629]
[1768499049369,3.177649,144.22,144.14,0.04841629]
[1768499050264,3.177649,144.22,144.15,6.2459]
[1768499051163,3.177649,144.22,144.17,0.04600997]
[1768499051971,3.177649,144.26,144.17,0.04600997]
[1768499052166,3.177649,144.26,144.17,1.91826478]
[1768499052471,3.177649,144.26,144.18,6.2446]
[1768499052973,3.177649,144.26,144.2,0.04451384]
[1768499053676,3.177649,144.26,144.21,2.77422532]
[1768499055880,3.177649,144.26,144.2,0.04451384]
[1768499056872,3.177649,144.25,144.16,6.2451]
[1768499057072,3.177649,144.25,144.17,2.77422532]
[1768499057864,3.177649,144.24,144.16,6.2451]
[1768499058479,0.05081773,144.22,144.16,6.2451]
[1768499059277,0.05081773,144.22,144.15,1.87225481]
[1768499059278,3.22846673,144.22,144.14,6.246]
[1768499064082,3.22846673,144.22,144.14,8.15976078]
[1768499064279,3.22846673,144.22,144.16,1.91376078]
[1768499064973,3.22846673,144.22,144.16,8.15916078]
[1768499065169,3.22846673,144.22,144.14,1.9128936]
[1768499066381,6.00269205,144.22,144.14,1.9128936]
[1768499066580,3.20235861,144.21,144.14,1.9128936]
[1768499066879,3.20235861,144.21,144.14,8.1590936]
[1768499067380,0.04524443,144.19,144.14,8.1590936]
[1768499068785,0.04524443,144.19,144.15,6.2459]
[1768499069076,3.20235861,144.21,144.14,1.9128936]
[1768499069379,3.20235861,144.21,144.15,0.05084137]
[1768499070673,5.97658393,144.21,144.15,0.05084137]
[1768499070881,3.20235861,144.2,144.15,0.05084137]
[1768499071477,3.20235861,144.2,144.12,1.9128936]
[1768499071678,3.20235861,144.18,144.12,1.9128936]
[1768499071873,3.20235861,144.18,144.09,21.12711892]
[1768499072074,3.20235861,144.17,144.1,6.2481]
[1768499072982,0.04519378,144.15,144.09,1.9128936]
[1768499073382,0.04519378,144.15,144.09,8.1613936]
[1768499073775,0.04519378,144.15,144.09,1.9128936]
[1768499074885,0.04519378,144.15,144.1,8.1609936]
[1768499075071,0.04519378,144.15,144.11,1.9128936]
[1768499076784,0.04519378,144.15,144.11,8.1604936]
[1768499079477,3.20235861,144.17,144.12,0.04476381]
[1768499079675,22.33658393,144.2,144.12,1.95765741]
[1768499079879,3.20235861,144.19,144.12,1.95765741]
[1768499080384,5.97658393,144.18,144.12,0.04476381]
[1768499080584,3.20235861,144.17,144.12,0.04476381]
[1768499081086,9.44765861,144.17,144.12,0.04476381]
[1768499082286,3.20235861,144.16,144.12,0.04476381]
[1768499084985,3.20235861,144.15,144.08,8.1614936]
[1768499085183,3.20235861,144.15,144.06,8.1623936]
[1768499085381,3.25302048,144.15,144.06,8.1623936]
[1768499085585,3.20235861,144.15,144.06,8.1623936]
[1768499085780,3.20235861,144.14,144.06,8.1623936]
[1768499086480,0.04510298,144.11,144.07,6.2494]
[1768499086684,0.04510298,144.11,144.06,1.9128936]
[1768499086876,0.04510298,144.11,144.07,6.2494]
[1768499089891,0.04510298,144.11,144.06,1.9128936]
[1768499090985,0.04510298,144.11,144.06,8.1624936]
[1768499091480,0.04510298,144.11,144.07,1.91385627]
[1768499091983,0.04510298,144.11,144.07,8.16295627]
[1768499093085,0.04510298,144.11,144.05,20.98808159]
[1768499094792,0.04510298,144.11,144.06,6.2498]
[1768499094984,3.20112354,144.11,144.02,1.91385627]
[1768499095292,3.20112354,144.11,144.04,4.68808159]
[1768499095490,3.15602056,144.11,144.05,1.91385627]
[1768499095793,0.05071084,144.09,144.05,1.91385627]
[1768499096795,0.05071084,144.09,144.04,18.99422532]
[1768499096987,0.05071084,144.09,144.04,4.68808159]
[1768499097193,0.05071084,144.09,144.04,1.91385627]
[1768499097593,0.05071084,144.09,144.04,8.16415627]
[1768499097795,3.2067314,144.09,144.02,16.2]
[1768499098093,3.2067314,144.09,144.02,18.11385627]
[1768499098391,9.4553314,144.09,144.03,6.2511]
[1768499098787,3.2067314,144.09,144.03,6.2511]
[1768499099192,3.2067314,144.09,144.02,1.91385627]
[1768499100193,3.15602056,144.08,144.0,18.09385627]
[1768499100495,3.15602056,144.08,144.0,1.91385627]
[1768499100693,16.18,144.1,144.0,8.16625627]
[1768499100694,9.40552056,144.07,144.0,8.16625627]
[1768499100997,3.15602056,144.06,143.98,16.18]
[1768499101197,3.20222936,144.05,143.98,16.18]
[1768499101495,3.20222936,144.05,143.98,18.09385627]
[1768499101698,3.15602056,144.13,144.01,1.91385627]
[1768499101893,16.16,144.12,144.01,1.91385627]
[1768499102199,9.40332056,144.12,144.05,6.2501]
[1768499103095,9.40332056,144.12,144.07,0.05194271]
[1768499103791,3.15602056,144.15,144.07,1.96579898]
[1768499105198,3.15602056,144.18,144.08,1.91385627]
[1768499106197,3.15602056,144.18,144.12,0.04703613]
[1768499106799,9.40092056,144.18,144.12,0.04703613]
[1768499108400,9.40132056,144.17,144.12,0.04703613]
[1768499108595,9.40132056,144.17,144.06,16.14]
[1768499108596,3.15602056,144.16,144.06,16.14]
[1768499108903,3.2063156,144.16,144.06,16.14]
[1768499109100,3.15602056,144.16,144.06,16.14]
[1768499109601,9.40262056,144.14,144.06,16.14]
[1768499109803,3.15602056,144.14,144.05,6.25478337]
[1768499109995,0.05165333,144.12,144.05,6.25478337]
[1768499110504,0.05165333,144.12,144.05,1.91385627]
[1768499112507,6.29895333,144.12,144.05,1.91385627]
[1768499116010,6.2477,144.11,144.05,1.91385627]
[1768499116400,3.15602056,144.17,144.06,1.91385627]
[1768499116710,6.2463,144.15,144.08,1.91385627]
[1768499116906,3.15602056,144.16,144.08,1.91385627]
[1768499117322,6.2465,144.14,144.08,1.91385627]
[1768499117821,3.15602056,144.14,144.05,1.91385627]
[1768499118027,3.15602056,144.16,144.05,1.91385627]
[1768499118226,0.05071726,144.12,144.05,1.91385627]
[1768499118820,0.05071726,144.12,144.06,1.96087319]
[1768499119628,0.05071726,144.12,144.07,1.96087319]
[1768499121828,0.05071726,144.12,144.08,1.96210286]
[1768499123926,0.05071726,144.12,144.08,8.21100286]
[1768499124527,3.1944379,144.15,144.09,6.2485]
[1768499126034,3.1944379,144.15,144.11,0.0505942]
[1768499127132,3.1944379,144.15,144.07,6.2491]
[1768499127133,3.30356902,144.14,144.07,6.2491]
[1768499127431,3.25033973,144.13,144.05,8.2121391]
[1768499127630,3.25033973,144.13,144.05,6.2499]
[1768499127631,3.25033973,144.12,144.05,6.2499]
[1768499128533,0.05200482,144.1,144.06,6.2498]
[1768499130935,0.05200482,144.1,144.05,6.2502]
[1768499131135,0.05200482,144.1,144.03,16.02]
[1768499131136,3.30234455,144.1,144.03,16.02]
[1768499131336,3.30234455,144.1,144.01,2.0128333]
[1768499131537,3.25033973,144.08,144.01,2.0128333]
[1768499132130,3.25033973,144.08,144.02,6.2515]
[1768499132435,0.05274045,144.06,144.02,6.2515]
[1768499134443,0.05274045,144.06,143.96,101.6279271]
[1768499134444,0.05274045,144.06,143.99,2.0128333]
[1768499134826,3.25033973,144.08,143.99,2.0128333]
[1768499135033,6.2495,144.07,143.99,2.0128333]
[1768499135228,3.25033973,144.08,143.99,2.0128333]
[1768499135629,3.25033973,144.08,144.02,0.04568797]
[1768499136028,3.25033973,144.07,144.02,0.04568797]
[1768499136745,9.54420854,144.06,143.99,2.0128333]
[1768499136937,0.04396881,144.06,143.99,2.0128333]
[1768499137939,0.04396881,144.06,144.01,1.96018187]
[1768499139048,3.25033973,144.09,144.02,8.21168187]
[1768499139345,6.2482,144.1,144.03,1.96018187]
[1768499140437,6.2482,144.1,144.05,0.04832496]
[1768499141043,9.49763973,144.12,144.05,2.00850683]
[1768499141340,3.25033973,144.14,144.05,2.00850683]
[1768499141744,9.49703973,144.14,144.07,1.96018187]
[1768499142244,9.49703973,144.14,144.08,0.05202023]
[1768499143949,3.25033973,144.14,144.08,0.05202023]
[1768499144840,9.49573973,144.17,144.08,2.0122021]
[1768499145036,3.25033973,144.16,144.08,2.0122021]
[1768499145344,3.25033973,144.16,144.08,1.96018187]
[1768499145742,3.25033973,144.16,144.11,0.0493001]
[1768499148352,3.25033973,144.18,144.11,0.0493001]
[1768499151359,3.25033973,144.18,144.11,2.01324099]
[1768499151560,3.25033973,144.18,144.11,8.26074099]
[1768499153754,3.25033973,144.18,144.11,0.0493001]
[1768499154853,3.33926075,144.17,144.11,0.0493001]
[1768499158963,3.33926075,144.17,144.08,6.2487]
[1768499159157,3.39197262,144.15,144.08,2.01324099]
[1768499160067,3.39197262,144.15,144.08,6.2488]
[1768499160655,3.33926075,144.13,144.06,8.26274099]
[1768499160857,3.33926075,144.13,144.06,2.01324099]
[1768499161060,3.33926075,144.15,144.06,2.01324099]
[1768499161258,3.33926075,144.15,144.09,6.2485]
[1768499161459,3.33926075,144.15,144.07,2.01324099]
[1768499161659,3.33926075,144.15,144.09,0.05246882]
[1768499161856,3.33926075,144.15,144.1,6.248]
[1768499165473,3.33926075,144.15,144.11,6.2476]
[1768499165861,3.33926075,144.15,144.09,0.05246882]
[1768499166371,3.33926075,144.15,144.09,6.30076882]
[1768499168770,3.33926075,144.15,144.1,6.248]
[1768499169271,3.33926075,144.15,144.09,0.05246882]
[1768499169970,3.33926075,144.15,144.04,2.01324099]
[1768499170275,3.33926075,144.13,144.04,2.01324099]
[1768499170468,3.38400268,144.13,144.04,2.01324099]
[1768499170773,3.33926075,144.13,144.04,2.01324099]
[1768499170973,3.33926075,144.12,144.05,6.2502]
[1768499171364,3.33926075,144.12,144.04,2.01324099]
[1768499171672,3.38819567,144.1,144.03,17.62570981]
[1768499172666,0.04893492,144.1,144.05,2.06570981]
[1768499172872,3.33926075,144.12,144.06,2.06570981]
[1768499173376,9.58656075,144.12,144.06,2.06570981]
[1768499176274,3.33926075,144.12,144.06,2.06570981]
[1768499177782,3.33926075,144.12,144.06,8.31550981]
[1768499177982,18.83926075,144.15,144.07,2.06570981]
[1768499178173,18.83926075,144.15,144.07,8.31500981]
[1768499178374,3.33926075,144.14,144.07,8.31500981]
[1768499178673,3.33926075,144.14,144.07,2.06570981]
[1768499178868,3.33926075,144.14,144.08,6.2489]
[1768499179383,3.33926075,144.14,144.09,0.04626076]
[1768499180283,3.33926075,144.14,144.09,6.29476076]
[1768499180879,3.09137437,144.16,144.09,8.35467159]
[1768499182284,3.09137437,144.15,144.09,8.35467159]
[1768499182483,3.09137437,144.15,144.09,2.10617159]
[1768499183781,3.09137437,144.15,144.09,0.04626076]
[1768499185489,3.09137437,144.15,144.09,6.29476076]
[1768499186887,3.09137437,144.15,144.09,0.04626076]
[1768499187090,15.44,144.17,144.05,2.77585635]
[1768499187091,3.12853297,144.13,144.05,2.77585635]
[1768499187388,3.12853297,144.13,144.04,2.06202964]
[1768499188190,3.12853297,144.12,144.06,6.2494]
[1768499188381,3.12853297,144.12,144.04,2.06202964]
[1768499188578,0.04918357,144.1,144.04,2.06202964]
[1768499189281,0.04918357,144.1,144.03,18.33585635]
[1768499189282,3.17771654,144.1,144.03,15.56]
[1768499190894,3.17771654,144.1,144.03,21.8108]
[1768499191189,3.17771654,144.1,144.03,15.56]
[1768499191387,3.17771654,144.1,144.03,17.66571163]
[1768499191986,3.17771654,144.1,144.03,23.91671163]
[1768499192592,9.42601654,144.1,144.03,17.66571163]
[1768499194988,9.42601654,144.1,144.03,23.91681163]
[1768499195190,0.04918357,144.1,144.04,2.27990363]
[1768499195584,0.04918357,144.1,144.03,18.33585635]
[1768499195585,0.04918357,144.1,144.06,8.52970363]
[1768499196285,12.15108932,144.14,144.07,6.29994109]
[1768499197191,3.12853297,144.13,144.07,6.29994109]
[1768499198092,3.12853297,144.13,144.07,8.70534139]
[1768499198289,3.12853297,144.13,144.08,6.2489]
[1768499198689,24.69443297,144.16,144.09,2.4054003]
[1768499199395,9.37443297,144.16,144.09,2.4054003]
[1768499199591,3.12853297,144.15,144.11,0.04813263]
[1768499201990,3.12853297,144.14,144.07,2.52664348]
[1768499202995,3.12853297,144.14,144.07,8.77594348]
[1768499203691,0.04626872,144.12,144.07,8.77594348]
[1768499205296,0.04626872,144.12,144.07,2.52664348]
[1768499208798,0.04626872,144.12,144.07,11.55179983]